fUSD/lending_fUSD_20260418
["ID","MTS","AMOUNT","RATE_DAILY","PERIOD"]
[420679705,1776457908682,-207.070983,0.00024658,2]
[420679706,1776457908691,-207.070983,0.00024658,2]
[420679707,1776457908700,-207.070983,0.00024658,2]
[420679708,1776457908710,-207.070983,0.00024658,2]
[420679709,1776457908719,-207.070983,0.00024658,2]
[420679710,1776457908728,-207.070983,0.00024658,2]
[420679711,1776457908737,-207.070983,0.00024658,2]
[420679712,1776457908747,-207.070983,0.00024658,2]
[420679713,1776457908756,-207.070983,0.00024658,2]
[420679714,1776457908765,-207.070983,0.00024658,2]
[420679715,1776457908774,-207.070983,0.00024658,2]
[420679716,1776457908783,-207.070979,0.00024658,2]
[420679717,1776457908793,-728.201453,0.00024658,2]
[420679718,1776457908802,-728.201453,0.00024658,2]
[420679719,1776457908812,-728.201453,0.00024658,2]
[420679720,1776457908821,-728.201453,0.00024658,2]
[420679721,1776457908830,-728.201453,0.00024658,2]
[420679722,1776457908840,-728.201453,0.00024658,2]
[420679723,1776457908849,-728.201453,0.00024658,2]
[420679724,1776457908858,-728.201453,0.00024658,2]
[420679725,1776457908868,-728.201453,0.00024658,2]
[420679726,1776457908877,-728.201453,0.00024658,2]
[420679727,1776457908887,-728.201453,0.00024658,2]
[420679728,1776457908897,-728.201453,0.00024658,2]
[420679729,1776457908908,-728.201453,0.00024658,2]
[420679730,1776457908917,-728.201453,0.00024658,2]
[420679731,1776457908927,-728.201453,0.00024658,2]
[420679732,1776457908937,-728.201453,0.00024658,2]
[420679733,1776457908947,-728.201453,0.00024658,2]
[420679734,1776457908956,-728.201453,0.00024658,2]
[420679735,1776457908965,-728.201453,0.00024658,2]
[420679736,1776457908975,-728.20145,0.00024658,2]
[420679737,1776457908984,-308.251322,0.00024658,2]
[420679738,1776457908994,-308.251322,0.00024658,2]
[420679739,1776457909003,-308.251322,0.00024658,2]
[420679740,1776457909013,-308.251322,0.00024658,2]
[420679741,1776457909022,-308.251322,0.00024658,2]
[420679742,1776457909032,-308.251322,0.00024658,2]
[420679743,1776457909041,-308.251322,0.00024658,2]
[420679744,1776457909050,-308.251322,0.00024658,2]
[420679745,1776457909059,-308.251322,0.00024658,2]
[420679746,1776457909069,-308.251322,0.00024658,2]
[420679747,1776457909078,-308.251322,0.00024658,2]
[420679748,1776457909087,-308.251322,0.00024658,2]
[420679749,1776457909097,-308.251322,0.00024658,2]
[420679750,1776457909107,-308.251322,0.00024658,2]
[420679751,1776457909117,-308.251322,0.00024658,2]
[420679752,1776457909126,-308.251322,0.00024658,2]
[420679753,1776457909135,-308.251322,0.00024658,2]
[420679754,1776457909145,-308.251322,0.00024658,2]
[420679755,1776457909154,-308.251322,0.00024658,2]
[420679756,1776457909165,-308.251326,0.00024658,2]
[420679757,1776457909174,-1000.0,0.00024658,2]
[420679758,1776457909184,-300.0,0.0002475,2]
[420679759,1776457909193,-300.0,0.0002475,2]
[420679760,1776457909204,-450.0,0.0002475,2]
[420679761,1776457909215,-150.0,0.0002475,2]
[420679762,1776457909225,-150.0,0.0002475,2]
[420679763,1776457909234,-300.0,0.0002475,2]
[420679764,1776457909244,-300.0,0.0002475,2]
[420679765,1776457909253,-2500.0,0.0002475,2]
[420679766,1776457909262,-500.0,0.0002475,2]
[420679767,1776457909271,-450.0,0.0002475,2]
[420679768,1776457909280,-674.21,0.00024767,120]
[420679769,1776457909290,-4332.08,0.00024822,2]
[420679770,1776457909299,-150.0,0.00024833,2]
[420679771,1776457909308,-676.0,0.00024919,11]
[420679772,1776457909317,-694.31,0.00024966,30]
[420679773,1776457909327,-520.73,0.00024978,120]
[420679774,1776457909336,-75820.30850655,0.00024986,2]
[420679775,1776457909345,-1123.21958737,0.00025,2]
[420679776,1776457909355,-209.22215878,0.00025,2]
[420679777,1776457909364,-1799.76699322,0.00025,2]
[420679778,1776457909374,-2000.0,0.00025,2]
[420679779,1776457909383,-540.0,0.00025,2]
[420679780,1776457909392,-615.86081029,0.00025,2]
[420679781,1776457909400,-3068.79673653,0.00025,2]
[420679782,1776457909410,-2218.33280606,0.00025,2]
[420679783,1776457909419,-168.68021683,0.00025,2]
[420679784,1776457909428,-150.0,0.00025,2]
[420679785,1776457909438,-1341.09411789,0.00025,4]
[420679786,1776457909447,-1129.04594097,0.00025,2]
[420679787,1776457909459,-300.0,0.00025,5]
[420679788,1776457909470,-225.0,0.00025,2]
[420679789,1776457909480,-1000.71419158,0.00025,3]
[420679790,1776457909490,-161.49018747,0.00025,15]
[420679791,1776457909499,-1632.9828887,0.00025,30]
[420679792,1776457909508,-323.0,0.00025,5]
[420679793,1776457909519,-538.77,0.00025,7]
[420679794,1776457909529,-151.0,0.00025,2]
[420679795,1776457909538,-114482.92234517,0.00025,7]
[420679796,1776457909547,-600000.0,0.00025,20]
[420679797,1776457909557,-7187.3169178,0.00025,2]
[420679798,1776457909566,-3829.20673637,0.00025,2]
[420679799,1776457909575,-50179.5785709,0.00025,2]
[420679800,1776457909584,-500.0,0.00025,2]
[420679801,1776457909594,-150.0,0.00025,2]
[420679802,1776457909604,-150.0,0.00025,2]
[420679803,1776457909612,-150.0,0.00025,2]
[420679804,1776457909623,-150.0,0.00025,2]
[420679805,1776457909632,-150.0,0.00025,2]
[420679806,1776457909642,-150.0,0.00025,2]
[420679807,1776457909651,-150.0,0.00025,2]
[420679808,1776457909661,-150.0,0.00025,2]
[420679809,1776457909671,-150.0,0.00025,2]
[420679810,1776457909680,-151.467,0.00025,2]
[420679811,1776457909690,-1049.0,0.00025,2]
[420679812,1776457909699,-674.21,0.00025014,120]
[420679813,1776457909708,-433.15,0.00025025,2]
[420679814,1776457909717,-180.0,0.00025128,2]
[420679815,1776457909727,-1250.0,0.00025205,2]
[420679816,1776457909736,-435.0,0.00025217,30]
[420679817,1776457909745,-495.0,0.00025217,30]
[420679818,1776457909754,-864.78058953,0.00025253,2]
[420679819,1776457909763,-674.21,0.0002526,120]
[420679820,1776457909772,-500.0,0.00025356,120]
[420679821,1776457909782,-4065.07,0.00025444,7]
[420679822,1776457909791,-1194.51,0.00025444,7]
[420679823,1776457909800,-674.21,0.00025507,120]
[420679824,1776457909810,-500.0,0.00025524,2]
[420679825,1776457909819,-2000.0,0.00025524,2]
[420679826,1776457909828,-676.0,0.00025591,12]
[420679827,1776457909838,-150.0,0.00025607,2]
[420679828,1776457909848,-433.16,0.00025623,2]
[420679829,1776457909857,-674.21,0.00025753,120]
[420679830,1776457909866,-1350.0,0.00025753,2]
[420679831,1776457909875,-894.53,0.00025773,30]
[420679832,1776457909884,-150.0,0.00025833,2]
[420679833,1776457909894,-382.7,0.000259,2]
[420679834,1776457909905,-150.0,0.000259,2]
[420679835,1776457909915,-605.72378549,0.0002599,2]
[420679836,1776457909925,-4559.82960426,0.00026,2]
[420679837,1776457909934,-218.2245773,0.00026,2]
[420679838,1776457909945,-27136.43947314,0.00026,10]
[420679839,1776457909957,-500.0,0.00026,7]
[420679840,1776457909966,-19627.85,0.00026,7]
[420679841,1776457909976,-674.21,0.00026,120]
[420679842,1776457909986,-1049.0,0.00026,2]
[420679843,1776457909995,-150.0,0.00026027,2]
[420679844,1776457910006,-276.0,0.00026027,2]
[420679845,1776457910015,-500.0,0.00026027,2]
[420679846,1776457910024,-500.0,0.00026027,2]
[420679847,1776457910035,-390.0,0.00026027,2]
[420679848,1776457910045,-200.0,0.00026027,2]
[420679849,1776457910054,-200.0,0.00026027,2]
[420679850,1776457910064,-184.0,0.00026027,2]
[420679851,1776457910072,-352.0,0.00026048,7]
[420679852,1776457910081,-595.12,0.00026094,120]
[420679853,1776457910090,-30000.0,0.000262,3]
[420679854,1776457910100,-1058.7,0.000262,4]
[420679855,1776457910109,-3943.12,0.00026208,7]
[420679856,1776457910118,-1158.68,0.00026208,7]
[420679857,1776457910128,-674.21,0.00026247,120]
[420679858,1776457910138,-867.89,0.00026254,30]
[420679859,1776457910149,-676.0,0.00026263,13]
[420679860,1776457910159,-1306.56355934,0.000263,2]
[420679861,1776457910169,-1450.0,0.00026301,2]
[420679862,1776457910180,-500.0,0.00026342,120]
[420679863,1776457910189,-256.79859589,0.00026397,30]
[420679864,1776457910198,-284.57589839,0.00026397,30]
[420679865,1776457910209,-250.3922658,0.00026397,30]
[420679866,1776457910219,-27717.17408019,0.000264,2]
[420679867,1776457910228,-674.21,0.00026493,120]
[420679868,1776457910237,-270.64484348,0.0002663,2]
[420679869,1776457910246,-419.81319855,0.0002663,2]
[420679870,1776457910255,-825.0,0.00026719,60]
[420679871,1776457910264,-674.21,0.0002674,120]
[420679872,1776457910273,-150.0,0.00026833,2]
[420679873,1776457910283,-1550.0,0.00026849,2]
[420679874,1776457910294,-3000.0,0.000269,45]
[420679875,1776457910305,-676.0,0.00026934,13]
[420679876,1776457910314,-1101.4,0.00026959,2]
[420679877,1776457910323,-3821.17,0.00026971,7]
[420679878,1776457910332,-1122.84,0.00026971,7]
[420679879,1776457910341,-674.21,0.00026986,120]
[420679880,1776457910350,-800.0,0.00026986,120]
[420679881,1776457910359,-800.0,0.00026986,120]
[420679882,1776457910370,-20000.0,0.00027,2]
[420679883,1776457910380,-250.0,0.00027,2]
[420679884,1776457910390,-1043.36116791,0.00027,2]
[420679885,1776457910400,-530.0,0.00027,2]
[420679886,1776457910410,-2000.0,0.00027,14]
[420679887,1776457910421,-309.90071592,0.00027,2]
[420679888,1776457910431,-1000.0,0.00027,27]
[420679889,1776457910442,-150.0,0.00027,2]
[420679890,1776457910452,-1300000.0,0.00027,30]
[420679891,1776457910462,-2000.0,0.00027,2]
[420679892,1776457910473,-1049.0,0.00027,2]
[420679893,1776457910482,-2544.489032,0.0002701,2]
[420679894,1776457910491,-500.0,0.00027192,120]
[420679895,1776457910500,-669.52,0.0002721,120]
[420679896,1776457910510,-674.21,0.00027233,120]
[420679897,1776457910519,-529.2743604,0.000273,30]
[420679898,1776457910529,-529.27436039,0.000273,30]
[420679899,1776457910538,-209.25,0.0002737,30]
[420679900,1776457910548,-209.15,0.0002737,30]
[420679901,1776457910557,-213.3,0.0002737,30]
[420679902,1776457910567,-173.0,0.0002737,30]
[420679903,1776457910576,-152.1,0.0002737,30]
[420679904,1776457910715,-956.85069829,0.0002737,30]
[420679905,1776457910730,-162.25,0.0002737,30]
[420679906,1776457910740,-160.15,0.0002737,30]
[420679907,1776457910750,-248.3,0.0002737,30]
[420679908,1776457910759,-180.5,0.0002737,30]
[420679909,1776457910768,-1785.5,0.0002737,30]
[420679910,1776457910778,-2225.0,0.0002737,30]
[420679911,1776457910787,-1943.0,0.0002737,30]
[420679912,1776457910802,-2353.5,0.0002737,30]
[420679913,1776457910812,-1464.5,0.0002737,30]
[420679914,1776457910821,-1814.5,0.0002737,30]
[420679915,1776457910831,-1545.5,0.0002737,30]
[420679916,1776457910840,-1010.0,0.0002737,30]
[420679917,1776457910850,-1260.5,0.0002737,30]
[420679918,1776457910859,-4146.86574862,0.0002739,2]
[420679919,1776457910868,-8192.27814689,0.0002739,2]
[420679920,1776457910878,-4475.74100998,0.0002739,7]
[420679921,1776457910888,-385.19789383,0.00027397,30]
[420679922,1776457910897,-426.86384758,0.00027397,30]
[420679923,1776457910908,-375.5883987,0.00027397,30]
[420679924,1776457910917,-175.46061039,0.00027397,2]
[420679925,1776457910927,-415.91303492,0.00027397,2]
[420679926,1776457910936,-422.00048624,0.00027397,2]
[420679927,1776457910947,-160.56209798,0.00027397,2]
[420679928,1776457910956,-1072.05,0.00027397,120]
[420679929,1776457910966,-195.22026347,0.00027397,2]
[420679930,1776457910976,-333.72598431,0.00027397,2]
[420679931,1776457910987,-500.0,0.00027397,2]
[420679932,1776457910996,-233.60818902,0.00027397,2]
[420679933,1776457911007,-5000.0,0.00027397,2]
[420679934,1776457911017,-2860.35250138,0.00027397,2]
[420679935,1776457911027,-1000.0,0.00027397,120]
[420679936,1776457911036,-500.0,0.00027397,2]
[420679937,1776457911046,-524.26,0.00027397,2]
[420679938,1776457911056,-300.0,0.00027397,2]
[420679939,1776457911065,-1000.0,0.00027397,20]
[420679940,1776457911075,-1459.48,0.00027397,2]
[420679941,1776457911085,-169.698084,0.00027397,2]
[420679942,1776457911094,-206.357465,0.00027397,3]
[420679943,1776457911103,-151.0,0.00027397,2]
[420679944,1776457911113,-151.0,0.00027397,2]
[420679945,1776457911122,-163.823934,0.00027397,2]
[420679946,1776457911132,-1752.686672,0.00027397,2]
[420679947,1776457911142,-1752.686672,0.00027397,2]
[420679948,1776457911153,-1752.686672,0.00027397,2]
[420679949,1776457911163,-1752.686672,0.00027397,2]
[420679950,1776457911173,-1752.686672,0.00027397,2]
[420679951,1776457911183,-1752.686672,0.00027397,2]
[420679952,1776457911193,-1752.686672,0.00027397,2]
[420679953,1776457911202,-1752.686672,0.00027397,2]
[420679954,1776457911213,-1752.686672,0.00027397,2]
[420679955,1776457911222,-1752.686672,0.00027397,2]
[420679956,1776457911233,-1752.686672,0.00027397,2]
[420679957,1776457911243,-1752.686672,0.00027397,2]
[420679958,1776457911253,-1752.686672,0.00027397,2]
[420679959,1776457911262,-1752.686672,0.00027397,2]
[420679960,1776457911271,-1752.686672,0.00027397,2]
[420679961,1776457911281,-1752.686672,0.00027397,2]
[420679962,1776457911290,-1752.686672,0.00027397,2]
[420679963,1776457911299,-1752.686672,0.00027397,2]
[420679964,1776457911309,-1752.686672,0.00027397,2]
[420679965,1776457911318,-1752.686676,0.00027397,2]
[420679966,1776457911327,-2504.815645,0.00027397,2]
[420679967,1776457911336,-2504.815645,0.00027397,2]
[420679968,1776457911345,-2504.815645,0.00027397,2]
[420679969,1776457911354,-2504.815645,0.00027397,2]
[420679970,1776457911364,-2504.815645,0.00027397,2]
[420679971,1776457911373,-2504.815645,0.00027397,2]
[420679972,1776457911383,-2504.815645,0.00027397,2]
[420679973,1776457911393,-151.0,0.00027397,2]
[420679974,1776457911402,-2504.815645,0.00027397,2]
[420679975,1776457911411,-151.0,0.00027397,2]
[420679976,1776457911421,-2504.815645,0.00027397,2]
[420679977,1776457911430,-151.0,0.00027397,2]
[420679978,1776457911440,-2504.815645,0.00027397,2]
[420679979,1776457911450,-151.0,0.00027397,2]
[420679980,1776457911460,-2504.815645,0.00027397,2]
[420679981,1776457911469,-151.0,0.00027397,2]
[420679982,1776457911479,-2504.815645,0.00027397,2]
[420679983,1776457911489,-151.0,0.00027397,2]
[420679984,1776457911499,-2504.815645,0.00027397,2]
[420679985,1776457911508,-151.0,0.00027397,2]
[420679986,1776457911518,-2504.815645,0.00027397,2]
[420679987,1776457911527,-2504.815645,0.00027397,2]
[420679988,1776457911537,-2504.815645,0.00027397,2]
[420679989,1776457911546,-2504.815645,0.00027397,2]
[420679990,1776457911555,-2504.815645,0.00027397,2]
[420679991,1776457911564,-2504.815645,0.00027397,2]
[420679992,1776457911574,-2504.815643,0.00027397,2]
[420679993,1776457911583,-151.0,0.00027397,2]
[420679994,1776457911592,-151.0,0.00027397,2]
[420679995,1776457911601,-151.0,0.00027397,2]
[420679996,1776457911611,-151.0,0.00027397,2]
[420679997,1776457911620,-151.0,0.00027397,2]
[420679998,1776457911629,-151.0,0.00027397,2]
[420679999,1776457911639,-151.0,0.00027397,2]
[420680000,1776457911649,-151.0,0.00027397,2]
[420680001,1776457911659,-151.0,0.00027397,2]
[420680002,1776457911668,-151.0,0.00027397,2]
[420680003,1776457911679,-279.480503,0.00027397,2]
[420680004,1776457911689,-151.0,0.00027397,2]
[420680005,1776457911700,-151.0,0.00027397,2]
[420680006,1776457911709,-151.0,0.00027397,2]
[420680007,1776457911719,-151.0,0.00027397,2]
[420680008,1776457911728,-151.0,0.00027397,2]
[420680009,1776457911738,-151.0,0.00027397,2]
[420680010,1776457911747,-151.0,0.00027397,2]
[420680011,1776457911756,-151.0,0.00027397,2]
[420680012,1776457911766,-151.0,0.00027397,2]
[420680013,1776457911775,-151.0,0.00027397,2]
[420680014,1776457911785,-151.0,0.00027397,2]
[420680015,1776457911794,-151.0,0.00027397,2]
[420680016,1776457911803,-151.0,0.00027397,2]
[420680017,1776457911813,-151.0,0.00027397,2]
[420680018,1776457911822,-151.0,0.00027397,2]
[420680019,1776457911832,-151.0,0.00027397,2]
[420680020,1776457911841,-151.0,0.00027397,2]
[420680021,1776457911850,-151.0,0.00027397,2]
[420680022,1776457911859,-175.429813,0.00027397,2]
[420680023,1776457911868,-2922.400295,0.00027397,2]
[420680024,1776457911878,-2922.400295,0.00027397,2]
[420680025,1776457911887,-2922.400295,0.00027397,2]
[420680026,1776457911897,-2922.400295,0.00027397,2]
[420680027,1776457911907,-2922.400295,0.00027397,2]
[420680028,1776457911917,-2922.400295,0.00027397,2]
[420680029,1776457911926,-2922.400295,0.00027397,2]
[420680030,1776457911936,-2922.400295,0.00027397,2]
[420680031,1776457911946,-2922.400295,0.00027397,2]
[420680032,1776457911955,-2922.400295,0.00027397,2]
[420680033,1776457911966,-2922.400295,0.00027397,2]
[420680034,1776457911977,-2922.400295,0.00027397,2]
[420680035,1776457911986,-2922.400295,0.00027397,2]
[420680036,1776457911995,-2922.400295,0.00027397,2]
[420680037,1776457912004,-2922.400295,0.00027397,2]
[420680038,1776457912014,-2922.400295,0.00027397,2]
[420680039,1776457912024,-2922.400295,0.00027397,2]
[420680040,1776457912034,-2922.400295,0.00027397,2]
[420680041,1776457912044,-2922.400295,0.00027397,2]
[420680042,1776457912054,-2922.400298,0.00027397,2]
[420680043,1776457912064,-500.0,0.00027397,5]
[420680044,1776457912074,-1650.0,0.00027397,5]
[420680045,1776457912084,-300.0,0.00027397,5]
[420680046,1776457912095,-161.4473864,0.00027397,5]
[420680047,1776457912104,-500.0,0.0002744,120]
[420680048,1776457912114,-1357.82,0.00027452,2]
[420680049,1776457912124,-674.21,0.00027479,120]
[420680050,1776457912133,-203.04124993,0.000275,2]
[420680051,1776457912144,-1000.0,0.000275,2]
[420680052,1776457912154,-1041.47,0.00027542,30]
[420680053,1776457912164,-289.80022217,0.00027585,40]
[420680054,1776457912174,-676.0,0.00027606,14]
[420680055,1776457912184,-1072.05,0.00027644,120]
[420680056,1776457912194,-150.0,0.00027656,2]
[420680057,1776457912204,-150.0,0.0002766,22]
[420680058,1776457912215,-674.21,0.00027726,120]
[420680059,1776457912224,-150.0,0.00027833,2]
[420680060,1776457912235,-1072.06,0.0002789,120]
[420680061,1776457912244,-382.7,0.000279,2]
[420680062,1776457912259,-1101.4,0.00027912,2]
[420680063,1776457912268,-500.0,0.00027932,120]
[420680064,1776457912278,-1307.73646461,0.00027945,5]
[420680065,1776457912287,-5000.0,0.00027945,2]
[420680066,1776457912297,-674.21,0.00027973,120]
[420680067,1776457912307,-3699.22,0.00027989,7]
[420680068,1776457912317,-1087.01,0.00027989,7]
[420680069,1776457912327,-896.77747135,0.00027992,2]
[420680070,1776457912337,-51312.33683773,0.00028,2]
[420680071,1776457912347,-160.0,0.00028,2]
[420680072,1776457912358,-160.1361403,0.00028,2]
[420680073,1776457912368,-300.0,0.00028,5]
[420680074,1776457912379,-704.56436425,0.00028,14]
[420680075,1776457912389,-320.76,0.00028,30]
[420680076,1776457912399,-151.9655,0.00028,5]
[420680077,1776457912410,-5000.44355,0.00028,40]
[420680078,1776457912420,-150.0,0.00028,2]
[420680079,1776457912429,-1049.0,0.00028,2]
[420680080,1776457912438,-2500.0,0.00028,15]
[420680081,1776457912449,-500.0,0.00028159,4]
[420680082,1776457912458,-500.0,0.00028159,4]
[420680083,1776457912468,-500.0,0.00028159,4]
[420680084,1776457912479,-500.0,0.00028159,4]
[420680085,1776457912489,-500.0,0.00028159,4]
[420680086,1776457912499,-500.0,0.00028159,4]
[420680087,1776457912510,-500.0,0.00028159,4]
[420680088,1776457912519,-500.0,0.00028159,4]
[420680089,1776457912529,-500.0,0.00028159,4]
[420680090,1776457912538,-500.0,0.00028159,4]
[420680091,1776457912548,-403.22,0.00028159,4]
[420680092,1776457912558,-1357.82,0.00028164,2]
[420680093,1776457912568,-197.62342296,0.000282,30]
[420680094,1776457912578,-674.21,0.00028219,120]
[420680095,1776457912588,-600.0,0.00028219,5]
[420680096,1776457912598,-676.0,0.00028278,14]
[420680097,1776457912608,-667.1,0.00028326,120]
[420680098,1776457912618,-500.0,0.00028329,2]
[420680099,1776457912628,-2000.0,0.00028329,2]
[420680100,1776457912638,-152.0,0.00028411,4]
[420680101,1776457912647,-169.85775971,0.00028411,5]
[420680102,1776457912658,-674.21,0.00028466,120]
[420680103,1776457912668,-5000.0,0.00028493,2]
[420680104,1776457912678,-674.21,0.00028712,120]
[420680105,1776457912688,-500.0,0.00028753,120]
[420680106,1776457912698,-1000.0,0.00028767,5]
[420680107,1776457912708,-209.0,0.0002882,30]
[420680108,1776457912717,-1215.05,0.00028829,30]
[420680109,1776457912727,-150.0,0.00028833,2]
[420680110,1776457912737,-1101.4,0.00028864,2]
[420680111,1776457912747,-1357.82,0.00028876,2]
[420680112,1776457912756,-676.0,0.00028949,15]
[420680113,1776457912766,-674.21,0.00028959,120]
[420680114,1776457912775,-825.0,0.00028959,60]
[420680115,1776457912786,-1757.04517277,0.00029,2]
[420680116,1776457912796,-506.93432557,0.00029,2]
[420680117,1776457912806,-3058.52,0.00029,7]
[420680118,1776457912817,-1049.0,0.00029,2]
[420680119,1776457912827,-900.0,0.00029041,5]
[420680120,1776457912838,-1058.7,0.0002907,7]
[420680121,1776457913212,-500.0,0.00029168,2]
[420680122,1776457913232,-674.21,0.00029205,120]
[420680123,1776457913241,-4332.08,0.0002926,2]
[420680124,1776457913251,-3577.26,0.00029261,7]
[420680125,1776457913260,-1051.18,0.00029261,7]
[420680126,1776457913270,-1084.28294231,0.000294,5]
[420680127,1776457913279,-1023.61648212,0.000294,5]
[420680128,1776457913289,-1077.68690742,0.000294,5]
[420680129,1776457913298,-1065.95959371,0.000294,5]
[420680130,1776457913308,-1120.45691389,0.000294,5]
[420680131,1776457913317,-1045.68172786,0.000294,5]
[420680132,1776457913326,-1163.17858719,0.000294,5]
[420680133,1776457913336,-674.21,0.00029452,120]
[420680134,1776457913345,-894.53,0.00029546,60]
[420680135,1776457913355,-500.0,0.00029575,120]
[420680136,1776457913364,-1357.82,0.00029589,2]
[420680137,1776457913374,-676.0,0.00029621,16]
[420680138,1776457913384,-674.21,0.00029699,120]
[420680139,1776457913393,-1101.4,0.00029817,2]
[420680140,1776457913403,-150.0,0.00029833,2]
[420680141,1776457913413,-1200.0,0.00029863,5]
[420680142,1776457913423,-150.0,0.00029868,2]
[420680143,1776457913432,-3865.38163134,0.000299,2]
[420680144,1776457913442,-382.7,0.000299,2]
[420680145,1776457913451,-233.88474656,0.00029921,92]
[420680146,1776457913462,-674.21,0.00029945,120]
[420680147,1776457913472,-239.58325492,0.0002999,2]
[420680148,1776457913482,-4821.97059761,0.0003,3]
[420680149,1776457913492,-18634.0639297,0.0003,2]
[420680150,1776457913502,-20067.38012148,0.0003,2]
[420680151,1776457913511,-322.48217616,0.0003,2]
[420680152,1776457913521,-1836.04728496,0.0003,2]
[420680153,1776457913530,-582.51998857,0.0003,4]
[420680154,1776457913539,-3327.87230905,0.0003,10]
[420680155,1776457913549,-164.65893279,0.0003,2]
[420680156,1776457913558,-150.0,0.0003,2]
[420680157,1776457913568,-1052.55180957,0.0003,2]
[420680158,1776457913577,-364.20665752,0.0003,30]
[420680159,1776457913586,-364.20665752,0.0003,30]
[420680160,1776457913596,-364.20665752,0.0003,30]
[420680161,1776457913606,-2000.0,0.0003,14]
[420680162,1776457913616,-400.0,0.0003,20]
[420680163,1776457913626,-521.3255937,0.0003,30]
[420680164,1776457913636,-500.0,0.0003,7]
[420680165,1776457913646,-7548.14827035,0.0003,2]
[420680166,1776457913656,-1599.28580842,0.0003,7]
[420680167,1776457913666,-1000.0,0.0003,12]
[420680168,1776457913676,-100561.24694863,0.0003,30]
[420680169,1776457913686,-400.0,0.0003,7]
[420680170,1776457913695,-14197.36047412,0.0003,4]
[420680171,1776457913705,-500000.0,0.0003,20]
[420680172,1776457913715,-975.02,0.0003,2]
[420680173,1776457913725,-162.93,0.0003,7]
[420680174,1776457913734,-1000.0,0.0003,20]
[420680175,1776457913744,-1000.0,0.0003,20]
[420680176,1776457913754,-1000.0,0.0003,20]
[420680177,1776457913764,-1000.0,0.0003,20]
[420680178,1776457913773,-1000.0,0.0003,20]
[420680179,1776457913784,-1000.0,0.0003,20]
[420680180,1776457913794,-1000.0,0.0003,20]
[420680181,1776457913806,-1000.0,0.0003,20]
[420680182,1776457913817,-1000.0,0.0003,20]
[420680183,1776457913827,-1000.0,0.0003,20]
[420680184,1776457913837,-1000.0,0.0003,20]
[420680185,1776457913846,-1000.0,0.0003,20]
[420680186,1776457913856,-1000.0,0.0003,20]
[420680187,1776457913867,-1000.0,0.0003,20]
[420680188,1776457913876,-1000.0,0.0003,20]
[420680189,1776457913886,-1000.0,0.0003,20]
[420680190,1776457913896,-1000.0,0.0003,20]
[420680191,1776457913905,-1000.0,0.0003,20]
[420680192,1776457913914,-1000.0,0.0003,20]
[420680193,1776457913924,-1000.0,0.0003,20]
[420680194,1776457913933,-1000.0,0.0003,20]
[420680195,1776457913942,-1000.0,0.0003,20]
[420680196,1776457913951,-1000.0,0.0003,20]
[420680197,1776457913961,-1000.0,0.0003,20]
[420680198,1776457913970,-1000.0,0.0003,20]
[420680199,1776457913980,-1000.0,0.0003,20]
[420680200,1776457913989,-1000.0,0.0003,20]
[420680201,1776457913998,-1000.0,0.0003,20]
[420680202,1776457914007,-1000.0,0.0003,20]
[420680203,1776457914016,-1000.0,0.0003,20]
[420680204,1776457914026,-1000.0,0.0003,20]